[Event "Early-Titled-Tuesday-Blitz-July-09-2024"]
[Site "Chess.com"]
[Date "2024.07.09"]
[Round "1"]
[White "Antek_Radzimski"]
[Black "GM-2023"]
[Result "1-0"]
[WhiteElo "2539"]
[BlackElo "1813"]
[TimeControl "180+1"]
[EndTime "8:01:44 PDT"]
[Termination "Antek_Radzimski won by checkmate"]

1. e4 {[%clk 0:02:59.9]} 1... d5 {[%clk 0:03:00.3]} 2. exd5 {[%clk 0:02:59.9]}
2... Qxd5 {[%clk 0:03:01.2]} 3. Nc3 {[%clk 0:03:00.8]} 3... Qd8 {[%clk
0:03:01.4]} 4. d4 {[%clk 0:03:01.3]} 4... Nf6 {[%clk 0:03:01.2]} 5. Nf3 {[%clk
0:03:01.9]} 5... e6 {[%clk 0:03:00.6]} 6. Be2 {[%clk 0:03:02.4]} 6... Be7 {[%clk
0:03:00.4]} 7. O-O {[%clk 0:03:02.5]} 7... O-O {[%clk 0:03:01]} 8. Bf4 {[%clk
0:03:02.5]} 8... c6 {[%clk 0:03:01]} 9. Bd3 {[%clk 0:03:01]} 9... Bd6 {[%clk
0:03:00.6]} 10. Bg5 {[%clk 0:03:00.6]} 10... h6 {[%clk 0:03:00.2]} 11. Bh4
{[%clk 0:03:01.1]} 11... g5 {[%clk 0:02:56.7]} 12. Bg3 {[%clk 0:03:01.2]} 12...
Bxg3 {[%clk 0:02:56.6]} 13. hxg3 {[%clk 0:03:02]} 13... Re8 {[%clk 0:02:56.3]}
14. Ne5 {[%clk 0:03:00.5]} 14... Nbd7 {[%clk 0:02:56]} 15. Qe2 {[%clk
0:02:59.3]} 15... Nxe5 {[%clk 0:02:56.2]} 16. Qxe5 {[%clk 0:02:57.4]} 16... Kg7
{[%clk 0:02:56.2]} 17. f4 {[%clk 0:02:56.8]} 17... gxf4 {[%clk 0:02:55.7]} 18.
Rxf4 {[%clk 0:02:55.8]} 18... Bd7 {[%clk 0:02:28.6]} 19. Raf1 {[%clk 0:02:54.5]}
19... c5 {[%clk 0:02:20.1]} 20. Rxf6 {[%clk 0:02:54.1]} 20... Bc6 {[%clk
0:02:19.7]} 21. Rxf7+ {[%clk 0:02:51.7]} 21... Kg8 {[%clk 0:02:20.2]} 22. Qg7#
{[%clk 0:02:52.6]} 1-0

[Event "Early-Titled-Tuesday-Blitz-July-09-2024"]
[Site "Chess.com"]
[Date "2024.07.09"]
[Round "1"]
[White "BashirliSaadat"]
[Black "Alonmindlin"]
[Result "0-1"]
[WhiteElo "2398"]
[BlackElo "2712"]
[TimeControl "180+1"]
[EndTime "8:02:20 PDT"]
[Termination "Alonmindlin won by resignation"]

1. Nf3 {[%clk 0:03:00.9]} 1... Nf6 {[%clk 0:02:59]} 2. b3 {[%clk 0:03:00.5]}
2... d5 {[%clk 0:02:58.2]} 3. Bb2 {[%clk 0:03:00.1]} 3... Bg4 {[%clk 0:02:56.5]}
4. e3 {[%clk 0:02:59.8]} 4... Nbd7 {[%clk 0:02:55.9]} 5. h3 {[%clk 0:02:59.8]}
5... Bxf3 {[%clk 0:02:55.8]} 6. Qxf3 {[%clk 0:02:59.8]} 6... c6 {[%clk
0:02:55.9]} 7. g4 {[%clk 0:02:59]} 7... e5 {[%clk 0:02:52.6]} 8. c4 {[%clk
0:02:54.4]} 8... Bd6 {[%clk 0:02:49.6]} 9. Nc3 {[%clk 0:02:53.2]} 9... e4 {[%clk
0:02:48.1]} 10. Qe2 {[%clk 0:02:42.2]} 10... Ne5 {[%clk 0:02:45.8]} 11. Qd1
{[%clk 0:02:33.8]} 11... Nf3+ {[%clk 0:02:44.7]} 12. Ke2 {[%clk 0:02:32.8]}
12... dxc4 {[%clk 0:02:43.7]} 13. bxc4 {[%clk 0:02:32.2]} 13... Ba3 {[%clk
0:02:41.4]} 14. Nxe4 {[%clk 0:02:27.1]} 14... Bxb2 {[%clk 0:02:39.8]} 15. Nxf6+
{[%clk 0:02:26.9]} 15... Qxf6 {[%clk 0:02:38.5]} 16. Rb1 {[%clk 0:02:26.1]}
16... O-O-O {[%clk 0:02:30.8]} 17. d3 {[%clk 0:02:18]} 17... Rhe8 {[%clk
0:02:23.1]} 18. Qb3 {[%clk 0:02:13.1]} 18... Nd4+ {[%clk 0:02:22]} 0-1

[Event "Early-Titled-Tuesday-Blitz-July-09-2024"]
[Site "Chess.com"]
[Date "2024.07.09"]
[Round "1"]
[White "djano"]
[Black "FM_Kappeler"]
[Result "1-0"]
[WhiteElo "2607"]
[BlackElo "2261"]
[TimeControl "180+1"]
[EndTime "8:02:20 PDT"]
[Termination "djano won by checkmate"]

1. e4 {[%clk 0:03:00.9]} 1... c5 {[%clk 0:02:57.8]} 2. Nc3 {[%clk 0:02:56]} 2...
e6 {[%clk 0:02:56.6]} 3. f4 {[%clk 0:02:55.4]} 3... a6 {[%clk 0:02:53.2]} 4. Nf3
{[%clk 0:02:54.9]} 4... d5 {[%clk 0:02:53.1]} 5. d3 {[%clk 0:02:45.8]} 5... Nc6
{[%clk 0:02:51.1]} 6. g3 {[%clk 0:02:44.1]} 6... g6 {[%clk 0:02:50]} 7. Bg2
{[%clk 0:02:43.9]} 7... Bg7 {[%clk 0:02:50.1]} 8. O-O {[%clk 0:02:44.1]} 8...
Nge7 {[%clk 0:02:50.2]} 9. Qe1 {[%clk 0:02:39.5]} 9... O-O {[%clk 0:02:47.7]}
10. Bd2 {[%clk 0:02:34.1]} 10... b5 {[%clk 0:02:42.2]} 11. g4 {[%clk 0:02:30.8]}
11... b4 {[%clk 0:02:37.8]} 12. Nd1 {[%clk 0:02:28.9]} 12... f5 {[%clk
0:02:32.5]} 13. gxf5 {[%clk 0:02:27.3]} 13... gxf5 {[%clk 0:02:31.8]} 14. e5
{[%clk 0:02:22.4]} 14... Kh8 {[%clk 0:02:28.6]} 15. Kh1 {[%clk 0:02:22.7]} 15...
Rg8 {[%clk 0:02:28.2]} 16. Ng5 {[%clk 0:02:22.5]} 16... Qe8 {[%clk 0:02:26.6]}
17. Qh4 {[%clk 0:02:20.6]} 17... Qg6 {[%clk 0:02:08.2]} 18. Qxh7+ {[%clk
0:02:20.1]} 18... Qxh7 {[%clk 0:02:06.7]} 19. Nf7# {[%clk 0:02:21]} 1-0

[Event "Early-Titled-Tuesday-Blitz-July-09-2024"]
[Site "Chess.com"]
[Date "2024.07.09"]
[Round "1"]
[White "Aygehovit1992"]
[Black "IMVadim"]
[Result "1-0"]
[WhiteElo "2784"]
[BlackElo "2429"]
[TimeControl "180+1"]
[EndTime "8:03:16 PDT"]
[Termination "Aygehovit1992 won by resignation"]

1. e4 {[%clk 0:03:00.9]} 1... c5 {[%clk 0:03:00.1]} 2. Nc3 {[%clk 0:03:00.4]}
2... a6 {[%clk 0:02:59.3]} 3. d4 {[%clk 0:02:59.8]} 3... cxd4 {[%clk 0:02:57.6]}
4. Qxd4 {[%clk 0:03:00.7]} 4... Nc6 {[%clk 0:02:57]} 5. Qe3 {[%clk 0:03:00.6]}
5... b5 {[%clk 0:02:55.9]} 6. a4 {[%clk 0:02:57]} 6... b4 {[%clk 0:02:54.9]} 7.
Nd5 {[%clk 0:02:57]} 7... Rb8 {[%clk 0:02:32.2]} 8. a5 {[%clk 0:02:38.5]} 8...
Nxa5 {[%clk 0:02:19.7]} 9. Qa7 {[%clk 0:02:38.2]} 9... Bb7 {[%clk 0:02:01.5]}
10. Rxa5 {[%clk 0:02:31.3]} 10... e6 {[%clk 0:02:01.3]} 11. Bf4 {[%clk
0:02:11.9]} 11... d6 {[%clk 0:01:53.6]} 12. Nb6 {[%clk 0:02:01.7]} 12... Ne7
{[%clk 0:01:38.1]} 13. Bxa6 {[%clk 0:01:54.4]} 13... Nc6 {[%clk 0:01:35.7]} 14.
Bb5 {[%clk 0:01:54.1]} 14... Qc7 {[%clk 0:01:32.7]} 15. Bxc6+ {[%clk 0:01:51.7]}
1-0

[Event "Early-Titled-Tuesday-Blitz-July-09-2024"]
[Site "Chess.com"]
[Date "2024.07.09"]
[Round "1"]
[White "Chesstiger64"]
[Black "Timerkhanov"]
[Result "0-1"]
[WhiteElo "2368"]
[BlackElo "2683"]
[TimeControl "180+1"]
[EndTime "8:03:30 PDT"]
[Termination "Timerkhanov won by resignation"]

1. d4 {[%clk 0:03:00.9]} 1... d5 {[%clk 0:02:59.3]} 2. Nf3 {[%clk 0:03:01.4]}
2... Nf6 {[%clk 0:02:59.2]} 3. e3 {[%clk 0:03:01.8]} 3... Bf5 {[%clk 0:02:56.8]}
4. c4 {[%clk 0:03:01]} 4... c6 {[%clk 0:02:55.7]} 5. Nc3 {[%clk 0:03:01.1]} 5...
e6 {[%clk 0:02:55.6]} 6. Bd3 {[%clk 0:03:00.7]} 6... Bxd3 {[%clk 0:02:55.6]} 7.
Qxd3 {[%clk 0:03:01.2]} 7... Nbd7 {[%clk 0:02:56.1]} 8. O-O {[%clk 0:03:00.4]}
8... Bb4 {[%clk 0:02:54.6]} 9. Bd2 {[%clk 0:02:59.4]} 9... a5 {[%clk 0:02:51.4]}
10. b3 {[%clk 0:02:59.2]} 10... O-O {[%clk 0:02:50.1]} 11. a3 {[%clk 0:02:59.1]}
11... Bxc3 {[%clk 0:02:49.6]} 12. Bxc3 {[%clk 0:02:59.6]} 12... Ne4 {[%clk
0:02:50.2]} 13. Bb2 {[%clk 0:02:58.3]} 13... f5 {[%clk 0:02:46.7]} 14. Nd2
{[%clk 0:02:56.3]} 14... Qb6 {[%clk 0:02:45.2]} 15. Rfd1 {[%clk 0:02:43.2]}
15... Qa6 {[%clk 0:02:33.3]} 16. f3 {[%clk 0:02:41]} 16... Nxd2 {[%clk
0:02:32.8]} 17. Rxd2 {[%clk 0:02:41.5]} 17... a4 {[%clk 0:02:31.3]} 18. cxd5
{[%clk 0:02:37.9]} 18... Qxd3 {[%clk 0:02:30.3]} 19. Rxd3 {[%clk 0:02:37.7]}
19... exd5 {[%clk 0:02:31]} 20. Rb1 {[%clk 0:02:27.2]} 20... Rf7 {[%clk
0:02:00.4]} 21. Bc3 {[%clk 0:02:25.6]} 21... Nb6 {[%clk 0:01:56.6]} 22. Bb4
{[%clk 0:02:23]} 22... axb3 {[%clk 0:01:55.9]} 23. Rdxb3 {[%clk 0:02:22.8]}
23... Nc4 {[%clk 0:01:56.5]} 24. Kf2 {[%clk 0:02:16.2]} 24... b5 {[%clk
0:01:56.4]} 25. h3 {[%clk 0:02:12.8]} 25... Rfa7 {[%clk 0:01:56.2]} 26. Ra1
{[%clk 0:02:12]} 26... Kf7 {[%clk 0:01:56.8]} 27. Ke2 {[%clk 0:02:10.6]} 27...
Ke6 {[%clk 0:01:57.2]} 28. Kd3 {[%clk 0:02:10.7]} 28... g6 {[%clk 0:01:55.2]}
29. Bc5 {[%clk 0:02:10.1]} 29... Ra4 {[%clk 0:01:47.5]} 30. e4 {[%clk
0:02:10.3]} 30... fxe4+ {[%clk 0:01:46.2]} 31. fxe4 {[%clk 0:02:11.2]} 31...
dxe4+ {[%clk 0:01:46.9]} 32. Kxe4 {[%clk 0:02:09.3]} 32... Nd2+ {[%clk
0:01:46.5]} 0-1

[Event "Early-Titled-Tuesday-Blitz-July-09-2024"]
[Site "Chess.com"]
[Date "2024.07.09"]
[Round "1"]
[White "Shuvalov"]
[Black "carloseduar100"]
[Result "1-0"]
[WhiteElo "2598"]
[BlackElo "2248"]
[TimeControl "180+1"]
[EndTime "8:03:32 PDT"]
[Termination "Shuvalov won by resignation"]

1. c4 {[%clk 0:03:00.5]} 1... e6 {[%clk 0:02:54.4]} 2. d4 {[%clk 0:02:58.4]}
2... d5 {[%clk 0:02:45]} 3. Nc3 {[%clk 0:02:57.9]} 3... Nf6 {[%clk 0:02:44.2]}
4. Nf3 {[%clk 0:02:58]} 4... a6 {[%clk 0:02:41.6]} 5. cxd5 {[%clk 0:02:56.2]}
5... exd5 {[%clk 0:02:40.3]} 6. Qb3 {[%clk 0:02:56.5]} 6... c6 {[%clk
0:02:39.3]} 7. e4 {[%clk 0:02:55.4]} 7... dxe4 {[%clk 0:02:37.9]} 8. Ng5 {[%clk
0:02:55.1]} 8... Qe7 {[%clk 0:02:32.1]} 9. Bc4 {[%clk 0:02:54.7]} 9... Nd5
{[%clk 0:01:54.2]} 10. Nxd5 {[%clk 0:02:51]} 10... cxd5 {[%clk 0:01:52.6]} 11.
Bxd5 {[%clk 0:02:51.5]} 11... Nc6 {[%clk 0:01:45.8]} 12. Bxf7+ {[%clk
0:02:45.1]} 12... Kd8 {[%clk 0:01:44.4]} 13. O-O {[%clk 0:02:39.9]} 13... h6
{[%clk 0:01:42.9]} 14. Ne6+ {[%clk 0:02:27.5]} 14... Bxe6 {[%clk 0:01:42.5]} 15.
Bxe6 {[%clk 0:02:28.4]} 15... Qc7 {[%clk 0:01:31]} 16. d5 {[%clk 0:02:17.9]}
16... Nb4 {[%clk 0:01:27.3]} 17. Be3 {[%clk 0:02:12.2]} 17... Nd3 {[%clk
0:01:06.7]} 18. Bb6 {[%clk 0:02:09.5]} 1-0

[Event "Early-Titled-Tuesday-Blitz-July-09-2024"]
[Site "Chess.com"]
[Date "2024.07.09"]
[Round "1"]
[White "guillembaches"]
[Black "Volodar_Murzin"]
[Result "1-0"]
[WhiteElo "2539"]
[BlackElo "2981"]
[TimeControl "180+1"]
[EndTime "8:03:40 PDT"]
[Termination "guillembaches won by resignation"]

1. e4 {[%clk 0:03:00.9]} 1... c5 {[%clk 0:02:56.7]} 2. Nf3 {[%clk 0:03:00.8]}
2... d6 {[%clk 0:02:56.4]} 3. d4 {[%clk 0:03:01]} 3... cxd4 {[%clk 0:02:54.9]}
4. Nxd4 {[%clk 0:03:01]} 4... Nf6 {[%clk 0:02:54.5]} 5. Nc3 {[%clk 0:03:01.1]}
5... a6 {[%clk 0:02:55.2]} 6. Be2 {[%clk 0:03:00.9]} 6... e6 {[%clk 0:02:50.8]}
7. g4 {[%clk 0:02:48.3]} 7... h6 {[%clk 0:02:50.3]} 8. h4 {[%clk 0:02:46.6]}
8... Be7 {[%clk 0:02:50]} 9. Rg1 {[%clk 0:02:45]} 9... Nfd7 {[%clk 0:02:50.6]}
10. g5 {[%clk 0:02:42.4]} 10... hxg5 {[%clk 0:02:51.5]} 11. hxg5 {[%clk
0:02:42.8]} 11... g6 {[%clk 0:02:52]} 12. a3 {[%clk 0:02:40.1]} 12... b5 {[%clk
0:02:49.1]} 13. Be3 {[%clk 0:02:38.5]} 13... Bb7 {[%clk 0:02:48.5]} 14. Qd2
{[%clk 0:02:35.4]} 14... Nc5 {[%clk 0:02:46.6]} 15. f3 {[%clk 0:02:30.1]} 15...
Nbd7 {[%clk 0:02:47]} 16. O-O-O {[%clk 0:02:29.7]} 16... Nb6 {[%clk 0:02:39.7]}
17. Rh1 {[%clk 0:02:27.3]} 17... Rf8 {[%clk 0:02:35.8]} 18. Kb1 {[%clk
0:02:16.5]} 18... d5 {[%clk 0:02:32.6]} 19. exd5 {[%clk 0:02:13.2]} 19... Nxd5
{[%clk 0:02:33.5]} 20. Nxd5 {[%clk 0:02:12.9]} 20... exd5 {[%clk 0:01:58.4]} 21.
Nxb5 {[%clk 0:01:56]} 21... axb5 {[%clk 0:01:56.6]} 22. Bxc5 {[%clk 0:01:50.7]}
22... Bc6 {[%clk 0:01:45.1]} 23. Rhe1 {[%clk 0:01:40.4]} 1-0

[Event "Early-Titled-Tuesday-Blitz-July-09-2024"]
[Site "Chess.com"]
[Date "2024.07.09"]
[Round "1"]
[White "MusicCityMaster"]
[Black "Iball95"]
[Result "0-1"]
[WhiteElo "2500"]
[BlackElo "2922"]
[TimeControl "180+1"]
[EndTime "8:03:47 PDT"]
[Termination "Iball95 won by resignation"]

1. e4 {[%clk 0:02:57.8]} 1... c5 {[%clk 0:03:00.4]} 2. Nf3 {[%clk 0:02:57.5]}
2... Nc6 {[%clk 0:02:59.3]} 3. d3 {[%clk 0:02:54.3]} 3... e6 {[%clk 0:02:54.4]}
4. g3 {[%clk 0:02:54.4]} 4... d5 {[%clk 0:02:53.7]} 5. Bg2 {[%clk 0:02:54]} 5...
Nf6 {[%clk 0:02:52.9]} 6. Nbd2 {[%clk 0:02:53.2]} 6... g6 {[%clk 0:02:53.1]} 7.
O-O {[%clk 0:02:53]} 7... Bg7 {[%clk 0:02:53.2]} 8. c3 {[%clk 0:02:52.9]} 8...
O-O {[%clk 0:02:53]} 9. e5 {[%clk 0:02:49.1]} 9... Ng4 {[%clk 0:02:41.3]} 10. d4
{[%clk 0:02:47.3]} 10... cxd4 {[%clk 0:02:42.2]} 11. cxd4 {[%clk 0:02:46.8]}
11... f6 {[%clk 0:02:42.8]} 12. h3 {[%clk 0:02:30.5]} 12... Nh6 {[%clk
0:02:42.6]} 13. Nb3 {[%clk 0:02:27.6]} 13... fxe5 {[%clk 0:02:37]} 14. Nxe5
{[%clk 0:02:20.4]} 14... Nf5 {[%clk 0:02:21.2]} 15. Nxc6 {[%clk 0:02:09.4]}
15... bxc6 {[%clk 0:02:22.1]} 16. Bf4 {[%clk 0:02:04.5]} 16... a5 {[%clk
0:02:20]} 17. Be5 {[%clk 0:01:43.9]} 17... Bxe5 {[%clk 0:02:18.1]} 18. dxe5
{[%clk 0:01:44]} 18... Qb6 {[%clk 0:02:16.5]} 19. g4 {[%clk 0:01:19.4]} 19...
Ng3 {[%clk 0:02:12.2]} 20. Qd4 {[%clk 0:01:04.5]} 20... Ne2+ {[%clk 0:02:12.1]}
0-1

[Event "Early-Titled-Tuesday-Blitz-July-09-2024"]
[Site "Chess.com"]
[Date "2024.07.09"]
[Round "1"]
[White "GMAkobianSTL"]
[Black "wild3000"]
[Result "1-0"]
[WhiteElo "2836"]
[BlackElo "2462"]
[TimeControl "180+1"]
[EndTime "8:03:48 PDT"]
[Termination "GMAkobianSTL won by resignation"]

1. d4 {[%clk 0:03:00.9]} 1... Nf6 {[%clk 0:02:56.3]} 2. c4 {[%clk 0:03:00.5]}
2... e6 {[%clk 0:02:56.3]} 3. Nf3 {[%clk 0:02:57.9]} 3... b6 {[%clk 0:02:55]} 4.
a3 {[%clk 0:02:54.3]} 4... Bb7 {[%clk 0:02:54.5]} 5. Nc3 {[%clk 0:02:43.1]} 5...
Be7 {[%clk 0:02:50.6]} 6. Bf4 {[%clk 0:02:42.1]} 6... O-O {[%clk 0:02:50.1]} 7.
e3 {[%clk 0:02:42]} 7... d6 {[%clk 0:02:42.7]} 8. Bd3 {[%clk 0:02:39.1]} 8...
Nh5 {[%clk 0:02:33.5]} 9. Bg3 {[%clk 0:02:37.7]} 9... f5 {[%clk 0:02:28.4]} 10.
Nd2 {[%clk 0:02:29]} 10... Nf6 {[%clk 0:02:13.3]} 11. d5 {[%clk 0:02:24.5]}
11... exd5 {[%clk 0:02:09.7]} 12. cxd5 {[%clk 0:02:24.4]} 12... g6 {[%clk
0:01:58]} 13. Nf3 {[%clk 0:02:13.8]} 13... Nxd5 {[%clk 0:01:21.8]} 14. Bc4
{[%clk 0:02:12.9]} 14... c6 {[%clk 0:01:21.9]} 15. Nxd5 {[%clk 0:02:12.7]} 15...
Kg7 {[%clk 0:01:04.6]} 16. Nxe7 {[%clk 0:02:11.7]} 16... Qxe7 {[%clk 0:01:04.9]}
17. Bxd6 {[%clk 0:02:11.7]} 17... Qf6 {[%clk 0:00:56]} 18. Be5 {[%clk
0:02:08.3]} 1-0

[Event "Early-Titled-Tuesday-Blitz-July-09-2024"]
[Site "Chess.com"]
[Date "2024.07.09"]
[Round "1"]
[White "Aslanov_Umid"]
[Black "mouseslips_are_the_best"]
[Result "1-0"]
[WhiteElo "2636"]
[BlackElo "2316"]
[TimeControl "180+1"]
[EndTime "8:03:57 PDT"]
[Termination "Aslanov_Umid won by resignation"]

1. e4 {[%clk 0:03:00.9]} 1... e6 {[%clk 0:02:58.7]} 2. d4 {[%clk 0:03:00]} 2...
d5 {[%clk 0:02:59]} 3. Nd2 {[%clk 0:03:00.5]} 3... c5 {[%clk 0:02:58.6]} 4. exd5
{[%clk 0:03:00.5]} 4... exd5 {[%clk 0:02:58.7]} 5. Ngf3 {[%clk 0:03:01.1]} 5...
Nc6 {[%clk 0:02:58.3]} 6. Bb5 {[%clk 0:03:01]} 6... Qe7+ {[%clk 0:02:58.4]} 7.
Qe2 {[%clk 0:02:56.1]} 7... Qxe2+ {[%clk 0:02:57.9]} 8. Kxe2 {[%clk 0:02:57]}
8... a6 {[%clk 0:02:57.3]} 9. Bxc6+ {[%clk 0:02:54.7]} 9... bxc6 {[%clk
0:02:58.2]} 10. Re1 {[%clk 0:02:54.2]} 10... f6 {[%clk 0:02:56.8]} 11. Kf1+
{[%clk 0:02:51.2]} 11... Kf7 {[%clk 0:02:56.4]} 12. c4 {[%clk 0:02:50.5]} 12...
a5 {[%clk 0:02:30.9]} 13. Kg1 {[%clk 0:02:41.7]} 13... Be6 {[%clk 0:02:14.9]}
14. b3 {[%clk 0:02:40.6]} 14... Rd8 {[%clk 0:02:11]} 15. Bb2 {[%clk 0:02:36.6]}
15... Nh6 {[%clk 0:02:10.1]} 16. Rac1 {[%clk 0:02:25.2]} 16... dxc4 {[%clk
0:01:56.9]} 17. Nxc4 {[%clk 0:02:26.1]} 17... a4 {[%clk 0:01:49.7]} 18. bxa4
{[%clk 0:02:15.6]} 18... Nf5 {[%clk 0:01:49]} 19. dxc5 {[%clk 0:02:11]} 19...
Bxc5 {[%clk 0:01:49.9]} 20. Nce5+ {[%clk 0:02:10]} 20... fxe5 {[%clk 0:01:40.8]}
21. Rxc5 {[%clk 0:02:10.6]} 21... e4 {[%clk 0:01:20]} 22. Ng5+ {[%clk
0:01:58.3]} 22... Ke7 {[%clk 0:01:11.7]} 23. Re5 {[%clk 0:01:57.7]} 1-0

[Event "Early-Titled-Tuesday-Blitz-July-09-2024"]
[Site "Chess.com"]
[Date "2024.07.09"]
[Round "1"]
[White "WindWhistler11"]
[Black "Vaathi_Coming"]
[Result "0-1"]
[WhiteElo "2493"]
[BlackElo "2907"]
[TimeControl "180+1"]
[EndTime "8:04:09 PDT"]
[Termination "Vaathi_Coming won by resignation"]

1. Nf3 {[%clk 0:02:59.1]} 1... Nf6 {[%clk 0:02:59]} 2. g3 {[%clk 0:02:59.5]}
2... b6 {[%clk 0:02:59.3]} 3. Bg2 {[%clk 0:02:59.6]} 3... Bb7 {[%clk 0:03:00.2]}
4. d3 {[%clk 0:03:00]} 4... d5 {[%clk 0:02:59.7]} 5. Nbd2 {[%clk 0:03:00.1]}
5... e6 {[%clk 0:02:59.4]} 6. a4 {[%clk 0:02:59.9]} 6... c5 {[%clk 0:02:58.9]}
7. a5 {[%clk 0:03:00.1]} 7... Be7 {[%clk 0:02:57.1]} 8. e4 {[%clk 0:02:59.3]}
8... dxe4 {[%clk 0:02:56.6]} 9. Ng5 {[%clk 0:02:59.7]} 9... O-O {[%clk
0:02:56.9]} 10. Ngxe4 {[%clk 0:02:59]} 10... Nxe4 {[%clk 0:02:56]} 11. dxe4
{[%clk 0:02:59.1]} 11... Nd7 {[%clk 0:02:51.8]} 12. a6 {[%clk 0:02:58.7]} 12...
Bc6 {[%clk 0:02:51.5]} 13. O-O {[%clk 0:02:57.5]} 13... Qc7 {[%clk 0:02:51.6]}
14. Re1 {[%clk 0:02:54.2]} 14... Rad8 {[%clk 0:02:47.9]} 15. Qe2 {[%clk
0:02:54.3]} 15... b5 {[%clk 0:02:47.7]} 16. c4 {[%clk 0:02:42.8]} 16... Ne5
{[%clk 0:02:41.3]} 17. cxb5 {[%clk 0:02:38.5]} 17... Be8 {[%clk 0:02:41.9]} 18.
Nc4 {[%clk 0:02:14.6]} 18... Bxb5 {[%clk 0:02:26.6]} 19. b3 {[%clk 0:02:15]}
19... Nc6 {[%clk 0:02:17.6]} 20. Be3 {[%clk 0:01:53.7]} 20... Nd4 {[%clk
0:02:16]} 21. Qb2 {[%clk 0:01:39.4]} 21... e5 {[%clk 0:01:55.8]} 22. Bd2 {[%clk
0:01:33.5]} 22... Bxc4 {[%clk 0:01:44.3]} 23. Ba5 {[%clk 0:01:22.7]} 23... Qb8
{[%clk 0:01:43.9]} 24. Bxd8 {[%clk 0:01:20.7]} 24... Rxd8 {[%clk 0:01:44.8]} 0-1

[Event "Early-Titled-Tuesday-Blitz-July-09-2024"]
[Site "Chess.com"]
[Date "2024.07.09"]
[Round "1"]
[White "Cheer_Down"]
[Black "Vahe_Danielyan"]
[Result "0-1"]
[WhiteElo "2422"]
[BlackElo "2768"]
[TimeControl "180+1"]
[EndTime "8:04:15 PDT"]
[Termination "Vahe_Danielyan won by resignation"]

1. e4 {[%clk 0:02:52.5]} 1... e5 {[%clk 0:02:59.5]} 2. Nf3 {[%clk 0:02:52]} 2...
Nc6 {[%clk 0:03:00]} 3. Bc4 {[%clk 0:02:51.9]} 3... Nf6 {[%clk 0:02:59.7]} 4. d3
{[%clk 0:02:51.9]} 4... h6 {[%clk 0:02:59.7]} 5. O-O {[%clk 0:02:45.9]} 5... d6
{[%clk 0:02:59.6]} 6. c3 {[%clk 0:02:42.3]} 6... g5 {[%clk 0:02:59.6]} 7. Nbd2
{[%clk 0:02:40.3]} 7... Bg7 {[%clk 0:02:59.1]} 8. Bb3 {[%clk 0:02:40]} 8... O-O
{[%clk 0:02:59.2]} 9. h3 {[%clk 0:02:39.9]} 9... d5 {[%clk 0:02:52.2]} 10. Qc2
{[%clk 0:02:32.8]} 10... dxe4 {[%clk 0:02:48.1]} 11. dxe4 {[%clk 0:02:31.8]}
11... Nh5 {[%clk 0:02:48.2]} 12. Nc4 {[%clk 0:02:30.2]} 12... Qf6 {[%clk
0:02:47.4]} 13. Ne3 {[%clk 0:02:20.4]} 13... Nf4 {[%clk 0:02:40.9]} 14. Nd5
{[%clk 0:02:17.6]} 14... Nxd5 {[%clk 0:02:40.9]} 15. exd5 {[%clk 0:02:16.1]}
15... Ne7 {[%clk 0:02:39.4]} 16. Re1 {[%clk 0:02:08.1]} 16... Ng6 {[%clk
0:02:37.4]} 17. Qe2 {[%clk 0:02:00.8]} 17... Bf5 {[%clk 0:02:34]} 18. Bc2 {[%clk
0:01:52.6]} 18... Rae8 {[%clk 0:02:34.3]} 19. Bxf5 {[%clk 0:01:49.5]} 19... Qxf5
{[%clk 0:02:35.2]} 20. Qe4 {[%clk 0:01:50]} 20... Qd7 {[%clk 0:02:34.6]} 21. g4
{[%clk 0:01:43.9]} 21... f5 {[%clk 0:02:33.6]} 22. gxf5 {[%clk 0:01:43.8]} 22...
Rxf5 {[%clk 0:02:34.5]} 23. Be3 {[%clk 0:01:29.4]} 23... Ref8 {[%clk 0:02:34.5]}
24. Qg4 {[%clk 0:01:28.3]} 24... Qxd5 {[%clk 0:02:32.8]} 25. Nd2 {[%clk
0:01:26.7]} 25... Nh4 {[%clk 0:02:30.6]} 26. c4 {[%clk 0:01:25.1]} 26... Qc6
{[%clk 0:02:30.2]} 27. b3 {[%clk 0:01:14.9]} 27... Qg6 {[%clk 0:02:15]} 28. Bc5
{[%clk 0:01:07.4]} 28... Rf4 {[%clk 0:02:11.7]} 29. Qe2 {[%clk 0:01:04.5]} 29...
Rd8 {[%clk 0:02:10.1]} 30. Ne4 {[%clk 0:01:01.6]} 30... Qf5 {[%clk 0:02:07.1]}
0-1

[Event "Early-Titled-Tuesday-Blitz-July-09-2024"]
[Site "Chess.com"]
[Date "2024.07.09"]
[Round "1"]
[White "mishanick"]
[Black "chess_peak"]
[Result "1-0"]
[WhiteElo "3107"]
[BlackElo "2534"]
[TimeControl "180+1"]
[EndTime "8:04:27 PDT"]
[Termination "mishanick won by resignation"]

1. d4 {[%clk 0:03:00.9]} 1... Nf6 {[%clk 0:02:58.8]} 2. c4 {[%clk 0:03:01.3]}
2... e6 {[%clk 0:02:58.1]} 3. Nc3 {[%clk 0:03:01.8]} 3... d5 {[%clk 0:02:56.4]}
4. Bd2 {[%clk 0:03:00.5]} 4... Be7 {[%clk 0:02:52.7]} 5. Nf3 {[%clk 0:02:59.9]}
5... O-O {[%clk 0:02:52.4]} 6. e3 {[%clk 0:03:00]} 6... b6 {[%clk 0:02:49.9]} 7.
Bd3 {[%clk 0:02:57.3]} 7... Bb7 {[%clk 0:02:49.1]} 8. O-O {[%clk 0:02:57.7]}
8... Nbd7 {[%clk 0:02:43.5]} 9. cxd5 {[%clk 0:02:50.4]} 9... exd5 {[%clk
0:02:42.3]} 10. Ne5 {[%clk 0:02:50.7]} 10... c5 {[%clk 0:02:36]} 11. f4 {[%clk
0:02:50.8]} 11... Ne4 {[%clk 0:02:01.4]} 12. Be1 {[%clk 0:02:48.9]} 12... cxd4
{[%clk 0:01:50.5]} 13. exd4 {[%clk 0:02:47.6]} 13... Rc8 {[%clk 0:01:50.7]} 14.
Qa4 {[%clk 0:02:34.4]} 14... Nxe5 {[%clk 0:01:15]} 15. fxe5 {[%clk 0:02:32.7]}
15... a5 {[%clk 0:01:12.2]} 16. Qb3 {[%clk 0:02:30.4]} 16... Bb4 {[%clk
0:01:09]} 17. a3 {[%clk 0:02:22.3]} 17... Bxc3 {[%clk 0:00:49.3]} 18. bxc3
{[%clk 0:02:23.2]} 18... Qg5 {[%clk 0:00:49.4]} 19. Rf3 {[%clk 0:02:21.2]} 19...
Nd2 {[%clk 0:00:46.7]} 20. Bxd2 {[%clk 0:02:16.2]} 20... Qxd2 {[%clk 0:00:47.6]}
21. Rd1 {[%clk 0:02:04.2]} 21... Qh6 {[%clk 0:00:33.7]} 22. Rh3 {[%clk
0:02:03.4]} 1-0